[Event "*** Titled Tuesday 3|2 Blitz"]
[Site "Chess.com"]
[Date "2017.03.07"]
[Round "2"]
[White "gkchesstiger"]
[Black "KNVB"]
[Result "1-0"]
[WhiteElo "2670"]
[BlackElo "2493"]
[TimeControl "180+2"]
[EndTime "13:24:04 PST"]
[Termination "gkchesstiger won by resignation"]

1. d4 {[%clk 0:03:02]} 1... Nf6 {[%clk 0:03:00.5]} 2. Nf3 {[%clk 0:03:03.2]}
2... e6 {[%clk 0:02:53.8]} 3. Bf4 {[%clk 0:03:04]} 3... c5 {[%clk 0:02:46.6]} 4.
e3 {[%clk 0:03:04.6]} 4... b6 {[%clk 0:02:47.2]} 5. Nbd2 {[%clk 0:03:02.3]} 5...
Bb7 {[%clk 0:02:48.4]} 6. h3 {[%clk 0:03:03]} 6... Be7 {[%clk 0:02:46.9]} 7. c3
{[%clk 0:03:02.6]} 7... O-O {[%clk 0:02:47.4]} 8. Bd3 {[%clk 0:03:03.3]} 8... d6
{[%clk 0:02:42.3]} 9. O-O {[%clk 0:03:01.8]} 9... Nbd7 {[%clk 0:02:42.2]} 10.
Qe2 {[%clk 0:02:59.5]} 10... Qc7 {[%clk 0:02:15.1]} 11. e4 {[%clk 0:02:59.1]}
11... cxd4 {[%clk 0:02:15.9]} 12. cxd4 {[%clk 0:02:59.7]} 12... Rac8 {[%clk
0:02:13.8]} 13. Bh2 {[%clk 0:02:52.6]} 13... Qb8 {[%clk 0:02:12.2]} 14. Rfe1
{[%clk 0:02:44.3]} 14... Qa8 {[%clk 0:01:32.5]} 15. Nb1 {[%clk 0:02:18.8]} 15...
b5 {[%clk 0:00:45.3]} 16. a4 {[%clk 0:01:57.8]} 16... bxa4 {[%clk 0:00:30.9]}
17. Rxa4 {[%clk 0:01:57.5]} 17... Nb6 {[%clk 0:00:31.3]} 18. Ra1 {[%clk
0:01:54.5]} 18... Rfd8 {[%clk 0:00:31.5]} 19. Nc3 {[%clk 0:01:54.6]} 19... g6
{[%clk 0:00:31.6]} 20. Nb5 {[%clk 0:01:52.8]} 20... a6 {[%clk 0:00:14]} 21. Nc3
{[%clk 0:01:53.1]} 21... a5 {[%clk 0:00:15.6]} 22. Bf4 {[%clk 0:01:53.6]} 22...
d5 {[%clk 0:00:10.5]} 23. e5 {[%clk 0:01:52.4]} 23... Ne4 {[%clk 0:00:12]} 24.
Nxe4 {[%clk 0:01:17.1]} 24... dxe4 {[%clk 0:00:13.9]} 25. Bxe4 {[%clk
0:01:18.7]} 25... Bxe4 {[%clk 0:00:15.4]} 26. Qxe4 {[%clk 0:01:20.3]} 26... Qxe4
{[%clk 0:00:17.1]} 27. Rxe4 {[%clk 0:01:21.9]} 27... Bb4 {[%clk 0:00:12]} 28.
Bg5 {[%clk 0:01:21.1]} 28... Rd7 {[%clk 0:00:12.5]} 29. h4 {[%clk 0:01:09.2]}
29... Rc2 {[%clk 0:00:11.1]} 30. b3 {[%clk 0:01:08.8]} 30... Rc3 {[%clk
0:00:07.5]} 31. Rb1 {[%clk 0:01:08.9]} 31... Nd5 {[%clk 0:00:06.4]} 32. h5
{[%clk 0:00:58.2]} 32... Be7 {[%clk 0:00:04.3]} 33. Bd2 {[%clk 0:00:57.3]} 33...
Rc6 {[%clk 0:00:03.2]} 34. Bxa5 {[%clk 0:00:55.6]} 34... Rb7 {[%clk 0:00:03.6]}
35. Bd2 {[%clk 0:00:55.6]} 35... Rcb6 {[%clk 0:00:04.3]} 36. Rc1 {[%clk
0:00:54]} 36... Rb8 {[%clk 0:00:03.5]} 37. Bg5 {[%clk 0:00:52.9]} 37... Bxg5
{[%clk 0:00:04.2]} 38. Nxg5 {[%clk 0:00:54]} 38... h6 {[%clk 0:00:05.7]} 39. Nf3
{[%clk 0:00:54.5]} 39... g5 {[%clk 0:00:07]} 40. Nd2 {[%clk 0:00:53.9]} 40...
Ra8 {[%clk 0:00:05.8]} 41. g3 {[%clk 0:00:53.4]} 41... Ra2 {[%clk 0:00:06.5]}
42. Nc4 {[%clk 0:00:46.2]} 42... Rxb3 {[%clk 0:00:05.5]} 43. Ree1 {[%clk
0:00:47.1]} 43... Ra8 {[%clk 0:00:04.4]} 44. Nd6 {[%clk 0:00:47.2]} 44... Rab8
{[%clk 0:00:05.8]} 45. Ne4 {[%clk 0:00:47]} 45... Kg7 {[%clk 0:00:06]} 46. Kg2
{[%clk 0:00:46.8]} 46... R3b4 {[%clk 0:00:05.9]} 47. Red1 {[%clk 0:00:47.2]}
47... Rb2 {[%clk 0:00:07.4]} 48. Rd2 {[%clk 0:00:46.1]} 48... Rxd2 {[%clk
0:00:06.8]} 49. Nxd2 {[%clk 0:00:47.2]} 49... Rb4 {[%clk 0:00:08.5]} 50. Nc4
{[%clk 0:00:45.5]} 50... f6 {[%clk 0:00:05.6]} 51. exf6+ {[%clk 0:00:42.9]}
51... Nxf6 {[%clk 0:00:07.5]} 52. Ne5 {[%clk 0:00:40]} 52... Rxd4 {[%clk
0:00:07]} 53. Rc7+ {[%clk 0:00:40.2]} 53... Kg8 {[%clk 0:00:08.6]} 54. Rc6
{[%clk 0:00:39.2]} 54... Nxh5 {[%clk 0:00:06.9]} 55. Rxe6 {[%clk 0:00:40.2]}
55... Kg7 {[%clk 0:00:07.5]} 56. Rg6+ {[%clk 0:00:38.6]} 56... Kh7 {[%clk
0:00:08.9]} 57. Ra6 {[%clk 0:00:39.3]} 57... Kg7 {[%clk 0:00:07.4]} 58. Ra7+
{[%clk 0:00:39.8]} 58... Kg8 {[%clk 0:00:06.6]} 59. Ng6 {[%clk 0:00:38.3]} 59...
Rd6 {[%clk 0:00:03.7]} 60. Ne7+ {[%clk 0:00:39.3]} 60... Kf8 {[%clk 0:00:04.1]}
61. Nf5 {[%clk 0:00:39.7]} 61... Rg6 {[%clk 0:00:03.1]} 62. Rh7 {[%clk
0:00:38.8]} 62... Rf6 {[%clk 0:00:03.8]} 63. Nxh6 {[%clk 0:00:38.6]} 63... Ng7
{[%clk 0:00:04.1]} 64. Rh8+ {[%clk 0:00:39.4]} 64... Ke7 {[%clk 0:00:05.3]} 65.
Ng8+ {[%clk 0:00:40.6]} 1-0

[Event "*** Titled Tuesday 3|2 Blitz"]
[Site "Chess.com"]
[Date "2017.03.07"]
[Round "2"]
[White "proxy6"]
[Black "chessbia"]
[Result "1/2-1/2"]
[WhiteElo "2141"]
[BlackElo "2121"]
[TimeControl "180+2"]
[EndTime "13:24:04 PST"]
[Termination "Game drawn by repetition"]

1. e4 {[%clk 0:03:02]} 1... e5 {[%clk 0:03:00.9]} 2. Nf3 {[%clk 0:03:03.2]} 2...
Nc6 {[%clk 0:03:02.6]} 3. Bb5 {[%clk 0:03:04.6]} 3... a6 {[%clk 0:03:04]} 4. Ba4
{[%clk 0:03:05.7]} 4... Nf6 {[%clk 0:03:05.1]} 5. O-O {[%clk 0:03:07.3]} 5...
Be7 {[%clk 0:03:06.7]} 6. Re1 {[%clk 0:03:07.3]} 6... b5 {[%clk 0:03:07.8]} 7.
Bb3 {[%clk 0:03:07.9]} 7... d6 {[%clk 0:03:09.4]} 8. c3 {[%clk 0:03:07.6]} 8...
O-O {[%clk 0:03:10.5]} 9. h3 {[%clk 0:03:08.6]} 9... Bb7 {[%clk 0:03:11.5]} 10.
d4 {[%clk 0:03:09.7]} 10... Nd7 {[%clk 0:03:12.2]} 11. Nbd2 {[%clk 0:03:08]}
11... Re8 {[%clk 0:03:09.5]} 12. Nf1 {[%clk 0:03:08]} 12... exd4 {[%clk
0:03:10.6]} 13. cxd4 {[%clk 0:03:08.8]} 13... Bf6 {[%clk 0:03:08.1]} 14. Bf4
{[%clk 0:03:05.1]} 14... Na5 {[%clk 0:03:06.6]} 15. Bc2 {[%clk 0:03:05.6]} 15...
Nf8 {[%clk 0:02:56.9]} 16. Rc1 {[%clk 0:03:05.1]} 16... c5 {[%clk 0:02:50]} 17.
d5 {[%clk 0:03:01.8]} 17... Nc4 {[%clk 0:02:49.1]} 18. b3 {[%clk 0:02:57]} 18...
Nb2 {[%clk 0:02:46]} 19. Qd2 {[%clk 0:02:52.5]} 19... b4 {[%clk 0:02:47.2]} 20.
Bg5 {[%clk 0:02:28.6]} 20... a5 {[%clk 0:02:28.9]} 21. Bb1 {[%clk 0:02:23.1]}
21... c4 {[%clk 0:01:57.5]} 22. bxc4 {[%clk 0:02:14.8]} 22... Na4 {[%clk
0:01:53.9]} 23. Bxf6 {[%clk 0:02:14.6]} 23... Qxf6 {[%clk 0:01:54.4]} 24. Qc2
{[%clk 0:02:14.9]} 24... Nc3 {[%clk 0:01:52.6]} 25. e5 {[%clk 0:02:08.1]} 25...
dxe5 {[%clk 0:01:49.9]} 26. a3 {[%clk 0:01:59.7]} 26... Rac8 {[%clk 0:01:48.3]}
27. axb4 {[%clk 0:01:58.2]} 27... axb4 {[%clk 0:01:50.2]} 28. Qb3 {[%clk
0:01:57]} 28... e4 {[%clk 0:01:40.5]} 29. N3h2 {[%clk 0:01:54]} 29... Qd4 {[%clk
0:01:25.8]} 30. Qxb4 {[%clk 0:01:52]} 30... Rxc4 {[%clk 0:01:05]} 31. Qxb7
{[%clk 0:00:56.5]} 31... Ne2+ {[%clk 0:01:05.7]} 32. Rxe2 {[%clk 0:00:57.6]}
32... Rxc1 {[%clk 0:01:06.5]} 33. Ba2 {[%clk 0:00:51.6]} 33... Qd3 {[%clk
0:00:35.3]} 34. Re3 {[%clk 0:00:34.6]} 34... Qc2 {[%clk 0:00:32.4]} 35. Bb3
{[%clk 0:00:32.8]} 35... Qc7 {[%clk 0:00:32.1]} 36. Qxc7 {[%clk 0:00:31.8]}
36... Rxc7 {[%clk 0:00:32.2]} 37. g3 {[%clk 0:00:31.8]} 37... f5 {[%clk
0:00:33.1]} 38. Kg2 {[%clk 0:00:31.3]} 38... Kh8 {[%clk 0:00:30.3]} 39. Nd2
{[%clk 0:00:32.7]} 39... Nd7 {[%clk 0:00:23.8]} 40. f3 {[%clk 0:00:33.6]} 40...
Rb7 {[%clk 0:00:20.7]} 41. fxe4 {[%clk 0:00:33.7]} 41... fxe4 {[%clk 0:00:20.9]}
42. Ng4 {[%clk 0:00:33.3]} 42... Nc5 {[%clk 0:00:19.7]} 43. Bc4 {[%clk
0:00:34.2]} 43... h5 {[%clk 0:00:20.6]} 44. Nf2 {[%clk 0:00:34.1]} 44... Rb2
{[%clk 0:00:21.9]} 45. Nb3 {[%clk 0:00:29.2]} 45... Rf8 {[%clk 0:00:20.2]} 46.
Re2 {[%clk 0:00:27.8]} 46... Rxe2 {[%clk 0:00:20]} 47. Bxe2 {[%clk 0:00:28.6]}
47... Nd3 {[%clk 0:00:21.4]} 48. Nxd3 {[%clk 0:00:28.9]} 48... exd3 {[%clk
0:00:23.1]} 49. Bxd3 {[%clk 0:00:30.5]} 49... Rd8 {[%clk 0:00:24.3]} 50. Be4
{[%clk 0:00:30.7]} 50... Kg8 {[%clk 0:00:24.5]} 51. Kf3 {[%clk 0:00:31.1]} 51...
g5 {[%clk 0:00:25.7]} 52. Ke3 {[%clk 0:00:31.8]} 52... Kf7 {[%clk 0:00:26.9]}
53. Nd4 {[%clk 0:00:32.4]} 53... Kf6 {[%clk 0:00:27.8]} 54. Nc6 {[%clk
0:00:32.5]} 54... Rd6 {[%clk 0:00:28.4]} 55. Kd4 {[%clk 0:00:32.9]} 55... g4
{[%clk 0:00:21.5]} 56. hxg4 {[%clk 0:00:32.5]} 56... hxg4 {[%clk 0:00:22.1]} 57.
Kc5 {[%clk 0:00:33.5]} 57... Rd7 {[%clk 0:00:21.5]} 58. d6 {[%clk 0:00:34.1]}
58... Ke6 {[%clk 0:00:19.1]} 59. Nd4+ {[%clk 0:00:32.9]} 59... Ke5 {[%clk
0:00:20.2]} 60. Bf5 {[%clk 0:00:22.7]} 60... Rxd6 {[%clk 0:00:21.3]} 61. Nc6+
{[%clk 0:00:22.2]} 61... Rxc6+ {[%clk 0:00:22.6]} 62. Kxc6 {[%clk 0:00:23.1]}
62... Kxf5 {[%clk 0:00:24.5]} 63. Kd5 {[%clk 0:00:24.6]} 63... Kf6 {[%clk
0:00:25.4]} 64. Ke4 {[%clk 0:00:22.7]} 64... Kg5 {[%clk 0:00:27.3]} 65. Ke5
{[%clk 0:00:23]} 65... Kh5 {[%clk 0:00:28.2]} 66. Kf5 {[%clk 0:00:23.5]} 66...
Kh6 {[%clk 0:00:30.1]} 67. Kxg4 {[%clk 0:00:21.5]} 67... Kg6 {[%clk 0:00:31.6]}
68. Kf4 {[%clk 0:00:22.7]} 68... Kf6 {[%clk 0:00:32.8]} 69. Kg4 {[%clk
0:00:23.5]} 69... Kg6 {[%clk 0:00:34.1]} 70. Kf4 {[%clk 0:00:24.9]} 70... Kf6
{[%clk 0:00:35.2]} 71. Kg4 {[%clk 0:00:26]} 71... Kg6 {[%clk 0:00:36.5]} 72. Kf4
{[%clk 0:00:27.4]} 1/2-1/2

[Event "*** Titled Tuesday 3|2 Blitz"]
[Site "Chess.com"]
[Date "2017.03.07"]
[Round "2"]
[White "TomsKantans"]
[Black "macko06"]
[Result "0-1"]
[WhiteElo "2495"]
[BlackElo "2328"]
[TimeControl "180+2"]
[EndTime "13:24:21 PST"]
[Termination "macko06 won by resignation"]

1. e4 {[%clk 0:02:59.8]} 1... e5 {[%clk 0:03:00.1]} 2. Nf3 {[%clk 0:02:54.8]}
2... Nc6 {[%clk 0:03:01]} 3. Bb5 {[%clk 0:02:55.3]} 3... a6 {[%clk 0:03:02.3]}
4. Ba4 {[%clk 0:02:56.2]} 4... Nf6 {[%clk 0:03:03.7]} 5. O-O {[%clk 0:02:57.4]}
5... Be7 {[%clk 0:03:03.8]} 6. Re1 {[%clk 0:02:58.5]} 6... b5 {[%clk 0:03:04.4]}
7. Bb3 {[%clk 0:02:59.6]} 7... d6 {[%clk 0:03:06]} 8. c3 {[%clk 0:03:00.7]} 8...
O-O {[%clk 0:03:06.6]} 9. d4 {[%clk 0:03:02]} 9... Bg4 {[%clk 0:03:06.9]} 10.
Be3 {[%clk 0:03:02.4]} 10... Bh5 {[%clk 0:03:07.4]} 11. h3 {[%clk 0:03:03.1]}
11... exd4 {[%clk 0:03:06.6]} 12. cxd4 {[%clk 0:03:05]} 12... d5 {[%clk
0:03:08.1]} 13. e5 {[%clk 0:03:05.5]} 13... Ne4 {[%clk 0:03:09.6]} 14. Nbd2
{[%clk 0:03:06.5]} 14... Qd7 {[%clk 0:02:55.6]} 15. Rc1 {[%clk 0:03:02.6]} 15...
Na5 {[%clk 0:02:27.5]} 16. Qc2 {[%clk 0:02:54]} 16... Nxb3 {[%clk 0:02:18.3]}
17. axb3 {[%clk 0:02:52.7]} 17... Rac8 {[%clk 0:02:04.6]} 18. Nxe4 {[%clk
0:02:50.8]} 18... dxe4 {[%clk 0:02:06]} 19. Qxe4 {[%clk 0:02:50.7]} 19... Bg6
{[%clk 0:02:07.3]} 20. Qc6 {[%clk 0:02:40.7]} 20... Rfd8 {[%clk 0:02:07.3]} 21.
Qxa6 {[%clk 0:02:38.2]} 21... Qd5 {[%clk 0:02:07.2]} 22. Nd2 {[%clk 0:02:35.9]}
22... c6 {[%clk 0:01:42.9]} 23. Qb7 {[%clk 0:02:09.8]} 23... Bb4 {[%clk
0:01:38.2]} 24. Red1 {[%clk 0:02:10.2]} 24... Bh5 {[%clk 0:01:36.5]} 25. f3
{[%clk 0:02:08.2]} 25... Bg6 {[%clk 0:01:25.3]} 26. Nf1 {[%clk 0:01:55.1]} 26...
Qxb3 {[%clk 0:01:18.7]} 27. Bg5 {[%clk 0:01:46]} 27... Rf8 {[%clk 0:01:10.5]}
28. d5 {[%clk 0:01:28.4]} 28... Bc2 {[%clk 0:00:57.4]} 29. Rxc2 {[%clk
0:01:14.5]} 29... Qxc2 {[%clk 0:00:56]} 30. Rc1 {[%clk 0:01:15.7]} 30... Qxb2
{[%clk 0:00:53.4]} 31. Rxc6 {[%clk 0:01:01.6]} 31... Rxc6 {[%clk 0:00:53.9]} 32.
dxc6 {[%clk 0:01:02.4]} 32... Qxe5 {[%clk 0:00:54.7]} 33. c7 {[%clk 0:00:54.1]}
33... Bc5+ {[%clk 0:00:50.3]} 34. Kh1 {[%clk 0:00:53.7]} 34... Qe2 {[%clk
0:00:33.5]} 35. c8=Q {[%clk 0:00:17.7]} 35... Qxf1+ {[%clk 0:00:34.4]} 36. Kh2
{[%clk 0:00:18.9]} 36... Bd6+ {[%clk 0:00:18.8]} 37. f4 {[%clk 0:00:19.5]} 37...
Bxf4+ {[%clk 0:00:18.9]} 38. Bxf4 {[%clk 0:00:20.7]} 38... Qxf4+ {[%clk
0:00:20.5]} 39. Kg1 {[%clk 0:00:19.8]} 39... Qe3+ {[%clk 0:00:21.6]} 40. Kf1
{[%clk 0:00:19.7]} 40... Qd3+ {[%clk 0:00:22.4]} 41. Kf2 {[%clk 0:00:18.3]}
41... Qd4+ {[%clk 0:00:23.6]} 42. Kf3 {[%clk 0:00:17.5]} 42... Qd3+ {[%clk
0:00:22.6]} 43. Kf2 {[%clk 0:00:16.3]} 43... Qd4+ {[%clk 0:00:21.6]} 44. Kf1
{[%clk 0:00:16.4]} 44... Qd1+ {[%clk 0:00:21.1]} 45. Kf2 {[%clk 0:00:17.4]}
45... Qd4+ {[%clk 0:00:21.7]} 46. Ke2 {[%clk 0:00:17.1]} 46... Qb2+ {[%clk
0:00:17.9]} 47. Kf3 {[%clk 0:00:08]} 47... Qa3+ {[%clk 0:00:18]} 48. Kg4 {[%clk
0:00:07.6]} 48... Rxc8 {[%clk 0:00:19]} 49. Qxc8+ {[%clk 0:00:09.5]} 49... Qf8
{[%clk 0:00:20.3]} 50. Qb7 {[%clk 0:00:11.4]} 50... b4 {[%clk 0:00:21.3]} 51. h4
{[%clk 0:00:12.1]} 51... g6 {[%clk 0:00:20.9]} 52. h5 {[%clk 0:00:12.4]} 52...
gxh5+ {[%clk 0:00:20.6]} 53. Kxh5 {[%clk 0:00:14.3]} 53... Qc5+ {[%clk
0:00:20.6]} 54. Kh4 {[%clk 0:00:13.6]} 54... Qd4+ {[%clk 0:00:21.7]} 55. g4
{[%clk 0:00:14.4]} 55... Kg7 {[%clk 0:00:22.8]} 56. Kh5 {[%clk 0:00:14.8]} 56...
Qe5+ {[%clk 0:00:23.4]} 57. Kh4 {[%clk 0:00:16]} 57... Qh2+ {[%clk 0:00:24.4]}
58. Kg5 {[%clk 0:00:17.3]} 58... h6+ {[%clk 0:00:25.7]} 59. Kf5 {[%clk 0:00:18]}
59... Qc2+ {[%clk 0:00:26.7]} 60. Kf4 {[%clk 0:00:18.9]} 60... b3 {[%clk
0:00:27.9]} 61. Qb4 {[%clk 0:00:17.6]} 61... Qc1+ {[%clk 0:00:26.7]} 62. Kg3
{[%clk 0:00:17.1]} 62... Qe3+ {[%clk 0:00:26.9]} 63. Kg2 {[%clk 0:00:16.2]}
63... Qd3 {[%clk 0:00:24.5]} 64. Qc5 {[%clk 0:00:12.4]} 64... Qc2+ {[%clk
0:00:22.3]} 0-1

[Event "*** Titled Tuesday 3|2 Blitz"]
[Site "Chess.com"]
[Date "2017.03.07"]
[Round "2"]
[White "maciek_92"]
[Black "attack2mateU"]
[Result "1-0"]
[WhiteElo "2540"]
[BlackElo "2338"]
[TimeControl "180+2"]
[EndTime "13:24:55 PST"]
[Termination "maciek_92 won by resignation"]

1. c4 {[%clk 0:03:02]} 1... e5 {[%clk 0:02:58.5]} 2. g3 {[%clk 0:03:03.3]} 2...
Nc6 {[%clk 0:02:56.7]} 3. Bg2 {[%clk 0:03:04.3]} 3... Nf6 {[%clk 0:02:56.4]} 4.
Nc3 {[%clk 0:03:05.6]} 4... Bc5 {[%clk 0:02:31.8]} 5. e3 {[%clk 0:03:06.3]} 5...
a6 {[%clk 0:02:28.5]} 6. Nge2 {[%clk 0:03:07.2]} 6... Ba7 {[%clk 0:02:25.7]} 7.
d4 {[%clk 0:03:05.8]} 7... O-O {[%clk 0:02:25.3]} 8. h3 {[%clk 0:03:03.1]} 8...
d6 {[%clk 0:02:24]} 9. O-O {[%clk 0:03:03.3]} 9... Bf5 {[%clk 0:02:14.7]} 10.
Kh2 {[%clk 0:02:48.8]} 10... h5 {[%clk 0:02:05.5]} 11. d5 {[%clk 0:02:48.1]}
11... Ne7 {[%clk 0:02:00.6]} 12. e4 {[%clk 0:02:40.2]} 12... Bd7 {[%clk
0:01:23.7]} 13. f4 {[%clk 0:02:38.9]} 13... Ng6 {[%clk 0:01:24.5]} 14. f5 {[%clk
0:02:38.8]} 14... Ne7 {[%clk 0:01:21.3]} 15. Bg5 {[%clk 0:02:34.9]} 15... Nh7
{[%clk 0:01:21.5]} 16. Bd2 {[%clk 0:02:32.9]} 16... g6 {[%clk 0:01:08.3]} 17. g4
{[%clk 0:02:11.7]} 17... hxg4 {[%clk 0:01:03.8]} 18. hxg4 {[%clk 0:02:11.9]}
18... f6 {[%clk 0:01:01.5]} 19. Ng3 {[%clk 0:01:44.6]} 19... Rf7 {[%clk
0:01:00.5]} 20. Qc1 {[%clk 0:01:36.5]} 20... Nf8 {[%clk 0:00:39.7]} 21. Be3
{[%clk 0:01:37]} 21... Rh7+ {[%clk 0:00:40.1]} 22. Kg1 {[%clk 0:01:37.7]} 22...
Bxe3+ {[%clk 0:00:39.6]} 23. Qxe3 {[%clk 0:01:36.8]} 23... g5 {[%clk 0:00:41.1]}
24. Kf2 {[%clk 0:01:36.8]} 24... Be8 {[%clk 0:00:40.6]} 25. Rh1 {[%clk
0:01:31.7]} 25... c5 {[%clk 0:00:38.7]} 26. Rxh7 {[%clk 0:01:27]} 26... Nxh7
{[%clk 0:00:39]} 27. Bf1 {[%clk 0:01:27.5]} 27... Rb8 {[%clk 0:00:38.6]} 28. Bd3
{[%clk 0:01:09.5]} 28... b5 {[%clk 0:00:38.4]} 29. b3 {[%clk 0:01:11]} 29...
bxc4 {[%clk 0:00:38.4]} 30. Bxc4 {[%clk 0:01:11.3]} 30... Bb5 {[%clk 0:00:40]}
31. Qd3 {[%clk 0:01:02.2]} 31... Qa5 {[%clk 0:00:37.5]} 32. Nge2 {[%clk
0:01:00.7]} 32... Nf8 {[%clk 0:00:27.4]} 33. Rh1 {[%clk 0:00:49.3]} 33... Kg7
{[%clk 0:00:28.1]} 34. Qh3 {[%clk 0:00:40.9]} 34... Bxc4 {[%clk 0:00:27.4]} 35.
bxc4 {[%clk 0:00:35]} 35... Rb2 {[%clk 0:00:26.9]} 36. Qd3 {[%clk 0:00:21.5]}
36... Qa3 {[%clk 0:00:23]} 37. Rb1 {[%clk 0:00:20.2]} 37... Nc8 {[%clk 0:00:18]}
38. Ke3 {[%clk 0:00:18.9]} 38... Nb6 {[%clk 0:00:17.6]} 39. Rh1 {[%clk
0:00:17.1]} 39... Qb4 {[%clk 0:00:17.5]} 40. Kf2 {[%clk 0:00:17.2]} 40... Qxc4
{[%clk 0:00:18.2]} 41. Qh3 {[%clk 0:00:18.4]} 41... Qd4+ {[%clk 0:00:17.8]} 42.
Kf1 {[%clk 0:00:14.7]} 42... Qd2 {[%clk 0:00:07.2]} 43. Qh8+ {[%clk 0:00:10.6]}
43... Kf7 {[%clk 0:00:08.4]} 44. Rh7+ {[%clk 0:00:12.2]} 44... Nxh7 {[%clk
0:00:08.5]} 45. Qxh7+ {[%clk 0:00:13.3]} 45... Ke8 {[%clk 0:00:10.2]} 46. Qg8+
{[%clk 0:00:14.4]} 46... Kd7 {[%clk 0:00:11.4]} 47. Qe6+ {[%clk 0:00:15.9]}
47... Kc7 {[%clk 0:00:12.4]} 48. Qxf6 {[%clk 0:00:16.2]} 48... Nc4 {[%clk
0:00:12.6]} 49. Qe7+ {[%clk 0:00:16.9]} 49... Kb6 {[%clk 0:00:12.8]} 50. Qd8+
{[%clk 0:00:17.7]} 50... Ka7 {[%clk 0:00:13.5]} 51. Qc7+ {[%clk 0:00:17.2]}
51... Rb7 {[%clk 0:00:13.9]} 52. Qc6 {[%clk 0:00:18.7]} 52... Ne3+ {[%clk
0:00:11.4]} 53. Kf2 {[%clk 0:00:20.1]} 53... Nxg4+ {[%clk 0:00:11]} 54. Kg3
{[%clk 0:00:21.2]} 54... Nf6 {[%clk 0:00:06.9]} 55. Qxd6 {[%clk 0:00:20.9]}
55... Qe3+ {[%clk 0:00:07.9]} 56. Kg2 {[%clk 0:00:21]} 56... Nxe4 {[%clk
0:00:09]} 57. Nxe4 {[%clk 0:00:16.8]} 57... Qxe4+ {[%clk 0:00:10.2]} 58. Kf2
{[%clk 0:00:18.3]} 58... Qc4 {[%clk 0:00:05.9]} 59. Qxe5 {[%clk 0:00:17.7]}
59... a5 {[%clk 0:00:07.2]} 60. f6 {[%clk 0:00:18.2]} 60... g4 {[%clk
0:00:05.8]} 61. Kg3 {[%clk 0:00:11.7]} 61... Qd3+ {[%clk 0:00:05.1]} 62. Kxg4
{[%clk 0:00:11.6]} 62... Rb4+ {[%clk 0:00:06.3]} 63. Nf4 {[%clk 0:00:12.8]}
63... Qg6+ {[%clk 0:00:06.6]} 64. Qg5 {[%clk 0:00:13]} 64... Qxg5+ {[%clk
0:00:06.8]} 65. Kxg5 {[%clk 0:00:14.1]} 65... c4 {[%clk 0:00:08.5]} 66. f7
{[%clk 0:00:15.2]} 66... Rb8 {[%clk 0:00:09]} 67. Ne6 {[%clk 0:00:15.5]} 67...
c3 {[%clk 0:00:10]} 68. Nd4 {[%clk 0:00:17.1]} 68... Kb6 {[%clk 0:00:10.5]} 69.
Kf6 {[%clk 0:00:18.5]} 69... Kc5 {[%clk 0:00:11.5]} 70. Ke5 {[%clk 0:00:18.9]}
70... c2 {[%clk 0:00:03.7]} 71. Nxc2 {[%clk 0:00:19.7]} 71... Rf8 {[%clk
0:00:05.4]} 72. Ke6 {[%clk 0:00:20.8]} 72... Ra8 {[%clk 0:00:05.4]} 73. d6
{[%clk 0:00:21.6]} 73... a4 {[%clk 0:00:05.5]} 74. d7 {[%clk 0:00:22.6]} 74...
Kc6 {[%clk 0:00:06]} 75. Ke7 {[%clk 0:00:22.5]} 75... Kc7 {[%clk 0:00:05.9]} 76.
Nd4 {[%clk 0:00:24]} 76... Rh8 {[%clk 0:00:06.4]} 77. Ne6+ {[%clk 0:00:25.9]}
77... Kc6 {[%clk 0:00:07.3]} 1-0